Cogmind - Beta 16 @@@ ROGUE MODE // 2025.11.21 @ 20:07:29 Player: the Result: Destroyed by CL-ANK with CL-ANK's Mallet Performance ------------- Evolutions (1) 500 Regions Visited (6) 1200 Robots Destroyed (118) 590 Value Destroyed (2277) 2277 Prototype IDs (44) 880 Alien Tech Used (0) 0 Bonus (348) 348 TOTAL SCORE: 5795 Bonus ------- High Alert Combat Kills 89 Aligned with FarCom 300 Friendly Fire -41 Cogmind --------- Core Integrity 0/400 Matter 300/300 Energy 36/100 System Corruption 0% Temperature Cool (0) Movement Core (50) Location -8/Mines Parts ------- > --- POWER (1) -------- (None) > --- PROPULSION (3) --- (None) > --- UTILITY (2) ------ (None) > --- WEAPON (3) ------- (None) > --- INVENTORY (5) ---- Advanced Visual Processing Unit Hacking Suite Recalibrator Beamcaster Advanced Beam Cannon Peak State ------------ > --- POWER ------------ Heavy Ion Engine > --- PROPULSION ------- Light Treads Light Treads Light Treads > --- UTILITY ---------- High-capacity Storage Unit Medium Armor Plating > --- WEAPON ----------- Beam Rifle Beam Rifle Beamcaster > --- INVENTORY -------- Improved Ion Engine Improved Ion Engine Heavy Ion Engine Light Nuclear Core Light Treads Light Treads Light Treads Heat Sink Seismic Detector Medium Armor Plating Medium Armor Plating Medium Armor Plating Recalibrator Beam Rifle Beam Rifle Advanced Beam Cannon Advanced Beam Cannon Advanced Beam Cannon Rocket Launcher Mining Laser [Rating: 22] Favorites ----------- Power Heavy Ion Engine Engine Heavy Ion Engine Propulsion Light Treads Treads Light Treads Leg Aluminum Leg Wheel Wheel Utility High-capacity Storage Unit Device Seismic Detector Storage High-capacity Storage Unit Protection Medium Armor Plating Weapon Beam Rifle Energy Gun Beam Rifle Energy Cannon Advanced Beam Cannon Ballistic Gun Assault Rifle Ballistic Cannon Light Cannon Launcher Grenade Launcher Slashing Weapon Katana Special Melee Weapon Datajack Build | -11 -10 -10 -9 -9 -9 -8 ------- Run | Yrd Mat Min Mat Min Exi Min Slots Evolved 2 | . . . 2 . . . Power . | . . . . . . . Propulsion 1 | . . . 1 . . . Utility . | . . . . . . . Weapon 1 | . . . 1 . . . Parts Attached 58 | 6 16 . 27 3 . 6 Power 6 | 1 2 . 3 . . . Engine 6 | 1 2 . 3 . . . Core . | . . . . . . . Reactor . | . . . . . . . Propulsion 23 | 2 3 . 10 3 . 5 Treads 19 | . 3 . 10 3 . 3 Leg 2 | 2 . . . . . . Wheel 2 | . . . . . . 2 Hover . | . . . . . . . Flight . | . . . . . . . Utility 12 | 1 7 . 4 . . . Device 7 | . 4 . 3 . . . Storage 3 | 1 2 . . . . . Processor . | . . . . . . . Hackware . | . . . . . . . Protection 2 | . 1 . 1 . . . Artifact . | . . . . . . . Weapon 17 | 2 4 . 10 . . 1 Energy Gun 6 | . . . 6 . . . Energy Cannon 2 | . . . 1 . . 1 Ballistic Gun 2 | 2 . . . . . . Ballistic Cannon 3 | . 3 . . . . . Launcher 2 | . 1 . 1 . . . Special Weapon . | . . . . . . . Impact Weapon . | . . . . . . . Slashing Weapon 1 | . . . 1 . . . Piercing Weapon . | . . . . . . . Special Melee Weapon 1 | . . . 1 . . . Unidentified Prototypes 2 | . . . 2 . . . Parts Lost 15 | . 1 . 2 . . 12 Power 1 | . . . . . . 1 Propulsion 8 | . 1 . . . . 7 Utility 1 | . . . . . . 1 Weapon 5 | . . . 2 . . 3 Highest Loss Streak 10 | . 1 . 2 . . 10 To Critical Strikes 3 | . . . . . . 3 Average Backups 18 | 5 16 19 19 19 20 10 Power 2 | . 3 4 2 1 1 . Propulsion 2 | 1 2 2 2 3 3 1 Utility 5 | 1 6 6 5 6 6 4 Weapon 7 | 1 5 6 8 8 9 4 Tool/Special . | . . . . . . . Unused Backups 27 | 2 4 . 11 1 . 9 Power 4 | . . . 4 . . . Propulsion . | . . . . . . . Utility 10 | 2 1 . 3 . . 4 Weapon 13 | . 3 . 4 1 . 5 Tool/Special . | . . . . . . . Average Slot Usage (%) 98 | . 99 100 97 100 100 57 Engine 12 | . 14 14 11 11 11 4 Treads 29 | . 23 28 32 33 33 14 Device 11 | . 13 12 10 10 11 4 Storage 12 | . 14 14 11 11 11 4 Energy Gun 17 | . . . 30 27 29 17 Ballistic Cannon 8 | . 23 15 . . . . Launcher 2 | . . 12 . 5 . . Peak Build Rating 22 | 7 12 12 22 22 22 19 Average Rating 15 | 5 9 11 20 18 18 11 On Entrance 12 | . 7 12 12 19 19 19 Avg Prop Armor Cover (%) 21 | 21 . . . . . . Naked Turns 34 | . . . . . . 34 Heaviest Build 66 | 13 60 54 66 59 61 59 Greatest Support 60 | 20 40 40 60 60 60 60 Greatest Overweight (x) 2 | . 1 1 1 . 1 2 Average Overweight (x) . | . . 1 . . . . Largest Inventory Capacity 20 | 8 20 20 20 20 20 20 Average Capacity 18 | 7 17 20 20 20 20 11 Most Carried 20 | 8 20 20 20 20 20 20 Average Carried 18 | 5 16 19 19 19 20 10 Final Capacity 20 | 8 20 20 20 20 20 5 Final Carried 20 | 8 19 20 19 20 20 5 Class Distribution -------------------- 42% | Mutant 34% | Scavenger-Gunner 17% | Gunner 5% | Scavenger-Mutant Dominant Class ---------------- Mutant | -10/Materials Mutant | -10/Mines Scavenger-Gunner | -9/Materials Scavenger-Gunner | -9/Mines Scavenger-Gunner | -9/Exiles Mutant | -8/Mines Resources | -11 -10 -10 -9 -9 -9 -8 ----------- Run | Yrd Mat Min Mat Min Exi Min Matter Collected 2316 | 319 586 330 672 321 . 88 Remotely 178 | . 178 . . . . . Salvage Created 3990 | 177 761 215 2332 354 24 127 Parts 206 | 21 49 20 102 6 2 6 Haulers Intercepted 8 | . 2 . 6 . . . Recyclers Shooed 7 | . 3 . 3 . . 1 Parts Field Recycled . | . . . . . . . Retrieved Matter . | . . . . . . . Parts Self-Destructed . | . . . . . . . Prevented . | . . . . . . . Parts Restored . | . . . . . . . Kills | -11 -10 -10 -9 -9 -9 -8 ------- Run | Yrd Mat Min Mat Min Exi Min Combat Hostiles Destroyed 68 | . 8 13 33 10 . 4 Guns 38 | . . . 28 6 . 4 Cannons 6 | . 2 4 . . . . AOE 22 | . 6 9 3 4 . . Classes Destroyed 14 | 3 6 . 3 1 1 . Worker 9 | 2 2 . 5 . . . Builder 5 | . 2 . 3 . . . Tunneler 8 | 5 . 1 2 . . . Hauler 8 | . 2 . 6 . . . Recycler 15 | 1 6 1 4 2 . 1 Mechanic 2 | . 1 . 1 . . . Operator 1 | . . . 1 . . . Watcher 7 | . 2 . 5 . . . Swarmer 22 | . 6 9 3 . . 4 Grunt 29 | . 2 4 19 4 . . Duelist 1 | . . . 1 . . . Sentry 10 | . . . 10 . . . Zionite 1 | . . . . . 1 . Assembled 6 | . . . . 6 . . Best Kill Streak 8 | 3 4 3 8 2 . 4 Combat Bots Only 8 | . 3 3 8 2 . 4 Max Kills in Single Turn 3 | 1 3 3 2 1 1 2 Gunslinging 1 | . . . 1 . . 1 Exploded 3 | . 3 3 2 1 . . Melee . | . . . . . . . Uniques/NPCs Destroyed . | . . . . . . . Combat | -11 -10 -10 -9 -9 -9 -8 -------- Run | Yrd Mat Min Mat Min Exi Min Hostile Shots Fired 176 | . 27 34 67 26 . 22 Missed 47 | . 10 13 14 8 . 2 Hits 129 | . 17 21 53 18 . 20 Melee 14 | . . . . . . 14 Projectile 115 | . 17 21 53 18 . 6 Critical Strikes 16 | . . 1 1 1 . 13 Damage Taken 3040 | . 293 221 703 296 . 1527 Core 504 | . 51 15 136 . . 302 Absorbed by Shields . | . . . . . . . Regen/Repaired (Parts) 146 | . 19 . 127 . . . Core Remaining (%) 86 | 100 . 73 . . . . Volleys Fired 263 | 23 50 23 105 40 5 17 Largest 3 | 2 2 2 3 3 1 3 Hottest 187 | 40 60 60 187 168 75 168 Shots Fired 621 | 46 97 38 300 93 5 42 Gun 483 | 46 24 . 290 82 5 36 Cannon 113 | . 70 30 7 . . 6 Launcher 25 | . 3 8 3 11 . . Special . | . . . . . . . Kinetic 174 | 46 94 30 4 . . . Thermal 422 | . . . 293 82 5 42 Explosive 25 | . 3 8 3 11 . . Electromagnetic . | . . . . . . . Robot Hit Streak 31 | 3 9 6 21 31 . 9 Robot Miss Streak 6 | 3 6 2 3 2 . 1 Penetration Max . | . . . . . . . Secondary Targets 9 | . . . 5 1 . 3 Max Gunslinging Chain 2 | . . . 1 1 . 2 Shots Hit Robots 351 | 16 40 22 197 31 13 32 Core Hits 158 | 11 25 20 72 21 1 8 Critical Kills . | . . . . . . . Critical Parts Destroyed . | . . . . . . . Critical Strikes 30 | . 1 1 21 3 . 4 Burn 28 | . . . 21 3 . 4 Blast 2 | . 1 1 . . . . Melee Attacks 14 | . . . 1 . 13 . Impact . | . . . . . . . Slashing 1 | . . . 1 . . . Piercing . | . . . . . . . Sneak Attacks 14 | . . . 1 . 13 . Combat Hostiles . | . . . . . . . Follow-up Attacks . | . . . . . . . Damage Inflicted 6737 | 182 898 809 3672 705 21 450 Guns 4525 | 182 173 . 3302 431 21 416 Cannons 845 | . 422 369 20 . . 34 Explosions 1171 | . 293 415 189 274 . . Melee 67 | . . . 67 . . . Ramming 129 | . 10 25 94 . . . Kinetic 1166 | 182 595 369 20 . . . Thermal 4204 | . . . 3302 431 21 450 Explosive 1171 | . 293 415 189 274 . . Electromagnetic . | . . . . . . . Impact . | . . . . . . . Slashing 67 | . . . 67 . . . Piercing . | . . . . . . . Highest Corruption . | . . . . . . . Average Corruption . | . . . . . . . Corruption Purged . | . . . . . . . Corruption Blocked . | . . . . . . . Overload Shots . | . . . . . . . Overflow Damage 69 | . 18 9 41 1 . . Projectiles 14 | . 14 . . . . . Explosions 14 | . 4 9 . 1 . . Melee 41 | . . . 41 . . . Knockbacks 7 | . 2 5 . . . . Impact . | . . . . . . . Kinetic 7 | . 2 5 . . . . Secondary . | . . . . . . . Self-Inflicted Damage 32 | . . . . 32 . . Shots 1 | . . . . 1 . . Rammed 15 | . 3 6 6 . . . Targets Rammed 16 | . 3 6 7 . . . Kicked . | . . . . . . . Crushed 1 | . . . 1 . . . Highest Temperature 394 | . 45 147 394 308 . 154 Average Temperature 100 | . 11 53 120 104 . 55 Received Heat Transfer 552 | . 33 78 297 144 . . Effects 9 | . . . 9 . . . Shutdowns 1 | . . . 1 . . . Energy Bleed 4 | . . . 4 . . . Interference 3 | . . . 3 . . . Damage (minor) 1 | . . . 1 . . . Siege Activations . | . . . . . . . Martial Activations . | . . . . . . . Shielding Activations . | . . . . . . . Robots Disrupted . | . . . . . . . Combat Hostiles . | . . . . . . . Robots Corrupted 1 | . . . 1 . . . Combat Hostiles . | . . . . . . . Parts Fried 3 | . . . 3 . . . Impact Corruptions 2 | . . . 2 . . . Robots Melted 4 | . . . 4 . . . Combat Hostiles 2 | . . . 2 . . . Parts Melted 34 | . . . 26 4 . 4 Heat Transferred 11019 | . . . 8991 1295 37 696 Parts Sabotaged . | . . . . . . . Parts Stolen . | . . . . . . . Parts Stripped . | . . . . . . . Power Chain Reactions . | . . . . . . . Alert | -11 -10 -10 -9 -9 -9 -8 ------- Run | Yrd Mat Min Mat Min Exi Min Maximum Alert Level 2 | . . 1 2 1 . . Low Security (%) 77 | 100 100 85 52 89 . 100 Level 1 14 | . . 14 26 10 . . Level 2 7 | . . . 20 . . . Level 3 . | . . . . . . . Level 4 . | . . . . . . . Level 5 . | . . . . . . . High Security . | . . . . . . . Max Security . | . . . . . . . Peak Influence 568 | 15 151 239 568 267 . 90 Initial 217 | . . . 51 217 . . Average 117 | 2 34 95 216 66 . 26 Influence Increases 2293 | 40 339 412 1128 279 . 95 Destroy 0b10 Robot/C 1240 | . 160 260 660 80 . 80 Destroy 0b10 Robot/NC 275 | 40 75 10 135 10 . 5 Destroy Leader 320 | . 38 50 202 20 . 10 Trap Triggered on 0b10 20 | . . . 20 . . . Successful Hack 51 | . 33 . 18 . . . Disable Machine 180 | . 15 45 45 75 . . Destroy Structure 162 | . 18 32 18 94 . . Partial Spotted 15 | . . . 15 . . . Lose Combat Pursuer 30 | . . 15 15 . . . Influence Decreases 2293 | 40 339 279 703 734 103 95 Entered New Map 526 | . . . 82 341 103 . Time Decay 1677 | 40 329 279 601 393 . 35 Lost Part 90 | . 10 . 20 . . 60 Squads Dispatched 3 | . . . 3 . . . Investigation 2 | . . . 2 . . . Extermination . | . . . . . . . Reinforcement 1 | . . . 1 . . . Assault . | . . . . . . . Garrison . | . . . . . . . Intercept . | . . . . . . . Searches Triggered . | . . . . . . . Construction Impeded . | . . . . . . . Haulers Reinforced . | . . . . . . . Active Scanning Responses . | . . . . . . . Cargo Convoy Interrupts . | . . . . . . . Stealth | -11 -10 -10 -9 -9 -9 -8 --------- Run | Yrd Mat Min Mat Min Exi Min Distress Signals 1 | . . . 1 . . . Communications Jammed . | . . . . . . . Distress Signals . | . . . . . . . Times Spotted 81 | . 13 11 42 11 . 4 Peak Tracking Total 9 | . 4 3 6 2 9 4 Tactical Retreats 2 | . . 1 1 . . . Traps | -11 -10 -10 -9 -9 -9 -8 ------- Run | Yrd Mat Min Mat Min Exi Min Traps Triggered 3 | . 1 . 2 . . . Indirectly . | . . . . . . . Trap Hack Attempts 16 | . . . 16 . . . Triggered . | . . . . . . . Disarmed . | . . . . . . . Reprogrammed 3 | . . . 3 . . . Reused 2 | . . . 2 . . . Traps Extracted . | . . . . . . . Installed . | . . . . . . . Triggered 2 | . . . 2 . . . Machines | -11 -10 -10 -9 -9 -9 -8 ---------- Run | Yrd Mat Min Mat Min Exi Min Machines Disabled 14 | . 1 3 3 5 2 . Max in Single Turn 4 | . 1 2 1 4 1 . Machines Repaired . | . . . . . . . Machines Dismantled . | . . . . . . . Machines Sabotaged . | . . . . . . . Overloaded Fab Kills . | . . . . . . . Hacking | -11 -10 -10 -9 -9 -9 -8 --------- Run | Yrd Mat Min Mat Min Exi Min Machines Accessed 28 | . 11 . 14 1 2 . Terminals 18 | . 8 . 9 1 . . Fabricators . | . . . . . . . Repair Stations 3 | . 1 . 2 . . . Recycling Units 4 | . 2 . 2 . . . Scanalyzers 1 | . . . 1 . . . Garrison Access . | . . . . . . . Total Hacks 69 | . 31 . 33 3 2 . Successful 38 | . 20 . 16 . 2 . Failed 30 | . 10 . 17 3 . . Catastrophic 4 | . 3 . 1 . . . Database Lockouts 1 | . 1 . . . . . Manual 40 | . 18 . 18 3 1 . Terminals 52 | . 27 . 22 3 . . Fabricators . | . . . . . . . Repair Stations 7 | . 2 . 5 . . . Recycling Units 6 | . 2 . 4 . . . Scanalyzers 2 | . . . 2 . . . Garrison Access . | . . . . . . . Terminal Hacks 16 | . 9 . 5 . 2 . Record 1 | . . . . . 1 . Robot Analysis 2 | . 2 . . . . . Prototype ID Bank 5 | . 2 . 3 . . . Terminal Index 2 | . 1 . 1 . . . Alert Level 1 | . . . 1 . . . Locate Traps 2 | . 2 . . . . . Registered Components 1 | . 1 . . . . . Zone Layout 1 | . 1 . . . . . Proto ID Catalog 1 | . . . . . 1 . Fabricator Hacks . | . . . . . . . Repair Station Hacks 6 | . 2 . 4 . . . Scan Component 3 | . 1 . 2 . . . Repair 3 | . 1 . 2 . . . Recycling Unit Hacks 3 | . 1 . 2 . . . Retrieve Components 3 | . 1 . 2 . . . Scanalyzer 2 | . . . 2 . . . Retrieve Study 2 | . . . 2 . . . Garrison Access Hacks . | . . . . . . . Unauthorized Hacks 11 | . 8 . 3 . . . Terminals 11 | . 8 . 3 . . . Botnet 4 | . 2 . 2 . . . Operators 2 | . 1 . 1 . . . Skim 5 | . 5 . . . . . Fabricators . | . . . . . . . Repair Stations . | . . . . . . . Recycling Units . | . . . . . . . Scanalyzers . | . . . . . . . Garrison Access . | . . . . . . . Data Cores Recovered . | . . . . . . . Used . | . . . . . . . Hacking Detections 25 | . 10 . 14 1 . . Full Trace Events . | . . . . . . . Feedback Events . | . . . . . . . Feedback Blocked . | . . . . . . . Robot Schematics Acquired . | . . . . . . . Robots Built . | . . . . . . . Authchips . | . . . . . . . Time . | . . . . . . . Total Robot Build Rating . | . . . . . . . Part Schematics Acquired . | . . . . . . . Parts Built . | . . . . . . . Authchips . | . . . . . . . Time . | . . . . . . . Total Part Build Rating . | . . . . . . . Part Studies Acquired 1 | . . . 1 . . . Parts Repaired 3 | . 1 . 2 . . . Time 126 | . 26 . 100 . . . Parts Recycled . | . . . . . . . Recycled Matter . | . . . . . . . Retrieved Matter . | . . . . . . . Retrieved Components 23 | . 9 . 14 . . . Parts Scanalyzed . | . . . . . . . Part Schematics Acquired . | . . . . . . . Parts Damaged . | . . . . . . . Bothacking | -11 -10 -10 -9 -9 -9 -8 ------------ Run | Yrd Mat Min Mat Min Exi Min Used RIF Installer . | . . . . . . . Robots Hacked 4 | . . . . . 4 . Non-combat 3 | . . . . . 3 . Combat 1 | . . . . . 1 . Robot Hacks Applied 13 | . . . . . 13 . parse_system 13 | . . . . . 13 . Relay Couplers Released . | . . . . . . . Fabnet Peak Effective % . | . . . . . . . Robots Rewired . | . . . . . . . Allies Hacked . | . . . . . . . Hacks Repelled . | . . . . . . . Allies | -11 -10 -10 -9 -9 -9 -8 -------- Run | Yrd Mat Min Mat Min Exi Min Total Allies . | . . . . . . . Largest Group . | . . . . . . . Highest-Rated Group . | . . . . . . . Highest-Rated Ally . | . . . . . . . Total Orders . | . . . . . . . Ally Attacks . | . . . . . . . Total Damage . | . . . . . . . Kills . | . . . . . . . Allies Corrupted . | . . . . . . . Allies Melted . | . . . . . . . Intel | -11 -10 -10 -9 -9 -9 -8 ------- Run | Yrd Mat Min Mat Min Exi Min Active Infowar (turns) 6143 | . 1915 1232 1984 1012 . . Seismic 6143 | . 1915 1232 1984 1012 . . Robot Analysis Total 2 | . 2 . . . . . Derelict Logs Recovered 4 | . . 2 . 2 . . Drone Launches . | . . . . . . . Drone Recoveries . | . . . . . . . Exploration | -11 -10 -10 -9 -9 -9 -8 ------------- Run | Yrd Mat Min Mat Min Exi Min Turns Passed 8690 | 185 1960 1397 3058 1364 543 183 Spaces Moved 3702 | 100 727 496 1373 585 308 113 Core 79 | 36 . . . . . 43 Treads 3316 | . 529 496 1373 585 308 25 Legs 262 | 64 198 . . . . . Wheels 45 | . . . . . . 45 Hover . | . . . . . . . Flight . | . . . . . . . Fastest Speed 50 | 50 120 240 160 160 160 50 Average Speed 178 | 94 199 240 170 160 165 91 Slowest Speed 320 | 120 240 240 240 160 240 320 Overloaded Moves . | . . . . . . . Propulsion Burnouts . | . . . . . . . Robots Hopped . | . . . . . . . Potential Cave-ins . | . . . . . . . Cave-ins Triggered . | . . . . . . . Exploration Rate (%) 68 | 4 97 94 95 97 64 29 Regions Visited 6 Branch Regions 4 Pre-discovered Areas 2 | . 1 . . . 1 . Known Exits Taken 2 | . . 1 1 . . . Unknown Exits Taken 4 | 1 1 . . 1 1 . Scrap Searched 6 | . . 3 . 2 . 1 Spaces Dug 17 | . 8 . 2 7 . . Terrain Destroyed 191 | . 16 35 11 129 . . Melee . | . . . . . . . Projectile 3 | . . . 3 . . . AOE 188 | . 16 35 8 129 . . Terrain Rammed . | . . . . . . . Walls Destroyed . | . . . . . . . Machines Disabled . | . . . . . . . Actions | -11 -10 -10 -9 -9 -9 -8 --------- Run | Yrd Mat Min Mat Min Exi Min Total 5224 | 147 1140 653 1863 934 329 158 Wait 945 | 5 293 116 230 286 . 15 Move 3696 | 99 726 495 1372 584 307 113 Hop . | . . . . . . . Pick Up 71 | 12 26 2 29 2 . . Fast Attach 10 | 4 1 . 3 . . 2 Attach 19 | 2 3 . 8 . . 6 Detach 3 | . . . . . . 3 Swap 108 | . 22 10 54 18 4 . Drop 63 | 2 16 1 38 4 . 2 Fire 263 | 23 50 23 105 40 5 17 Melee 14 | . . . 1 . 13 . Ram . | . . . . . . . Kick . | . . . . . . . Crush 16 | . 3 6 7 . . . Escape Stasis . | . . . . . . . Rewire . | . . . . . . . Trap 16 | . . . 16 . . . Miscellaneous . | . . . . . . . Route ------- -11/Scrapyard -10/Materials (discovered 6 exits: *Mat x3 / [*Min x2] / Sub) -10/Mines (discovered 2 exits: *Mat x2) -9/Materials (discovered 5 exits: *Mat x3 / *Min x2) -9/Mines (discovered 3 exits: *Mat x2 / *Exi) -9/Exiles -8/Mines History --------- Turn | Location | Event 5 | -11/Scrapyard | Discovered new exit (range 15) 186 | -11/Scrapyard | Entered Materials 213 | -10/Materials | Discovered new exit (range 15) 302 | -10/Materials | Build established: Mutant 307 | -10/Materials | Discovered new exit (range 11) 786 | -10/Materials | Discovered new exit (range 4) 973 | -10/Materials | Discovered new exit (range 8) 1117 | -10/Materials | Discovered new exit (range 8) 1211 | -10/Materials | Learned Storage trap positions 1244 | -10/Materials | Central database locked down 1289 | -10/Materials | Learned location of Subcaves (-10) 1357 | -10/Materials | Loaded intel: 1 repair station location 1415 | -10/Materials | Learned Storage security intel 1504 | -10/Materials | Learned 4 Subcaves zone layouts 1532 | -10/Materials | Identified exit to Subcaves 1572 | -10/Materials | Identified exit to Materials 1622 | -10/Materials | Learned Storage emergency access door positions 1680 | -10/Materials | Learned location of 2 exits from Mines 2057 | -10/Materials | Repaired Grenade Launcher? 2146 | -10/Materials | Entered Mines 2219 | -10/Mines | Met a Derelict bent on vengeance 2246 | -10/Mines | Learned location of 1 exit from Materials 2275 | -10/Mines | Found a Scrap Suit stashed away for nefarious purposes 3024 | -10/Mines | Learned location of 1 exit from Materials 3543 | -10/Mines | Entered Materials 3543 | -9/Materials | Evolved 2 slots: Propulsion x1, Weapon x1 3544 | -9/Materials | Identified exit to Materials 3544 | -9/Materials | Identified exit to Mines 4112 | -9/Materials | Discovered exit to Mines (range 7) 4365 | -9/Materials | Build established: Gunner 4804 | -9/Materials | Discovered exit to Materials (range 3) 5371 | -9/Materials | Repaired Beamcaster 5981 | -9/Materials | Build established: Scavenger-Gunner 6021 | -9/Materials | Destroyed 8 combat bots 6189 | -9/Materials | Discovered exit to Materials (range 3) 6569 | -9/Materials | Repaired Beamcaster 6601 | -9/Materials | Entered Mines 6756 | -9/Mines | Assembled infested the area 7023 | -9/Mines | Learned Materials emergency access door positions 7356 | -9/Mines | Discovered exit to Materials (range 9) 7376 | -9/Mines | Received a Rocket Launcher from a helpful Derelict 7410 | -9/Mines | Discovered exit to Materials (range 3) 7457 | -9/Mines | Joined a pair of Derelicts in attacking an 0b10 outpost 7511 | -9/Mines | Deemed a non-threat by the Exiles lab entrance 7547 | -9/Mines | Learned location of 1 exit from Materials 7957 | -9/Mines | Discovered new exit (range 5) 7965 | -9/Mines | Entered Exiles 8005 | -9/Exiles | Met 8R-AWN 8036 | -9/Exiles | Met EX-HEX 8100 | -9/Exiles | Met EX-DEC 8111 | -9/Exiles | Learned location of Zion (-7) 8170 | -9/Exiles | Met EX-BIN 8252 | -9/Exiles | Aligned with FarCom system 8254 | -9/Exiles | Given EX-Vault access code 8297 | -9/Exiles | Opened EX-Vault 8337 | -9/Exiles | Warned to stay clear of 0b10 Research branches 8472 | -9/Exiles | Attacked by the Exiles 8480 | -9/Exiles | Discovered new exit (range 14) 8508 | -9/Exiles | Entered Mines 8553 | -8/Mines | CL-ANK came to Exiles' defense 8578 | -8/Mines | Core integrity fell below 50% 8591 | -8/Mines | Core integrity fell below 20% 8618 | -8/Mines | Lost 10 parts (1p5n1u3w) 8691 | -8/Mines | Destroyed by CL-ANK with CL-ANK's Mallet Last Messages --------------- (Smash). 08609_ U-05 Engineer destroyed. 08626_ Acquired Wheel. 08628_ Acquired 19 matter. 08629_ Acquired Com. Wheel. 08632_ R-06 Scavenger collects Seismic Detector. 08635_ R-06 Scavenger destroyed. 08640_ Acquired 36 matter. 08653_ CL-ANK sneak attacks. 08653_ T-07 Excavator suffers critical hit (Smash). 08653_ T-07 Excavator destroyed. 08660_ T-07 Excavator is excavating. 08671_ Searching scrap... 08671_ Found Hardlight Generator. 08671_ Found 31 Matter. 08677_ T-07 Excavator is excavating. 08689_ Wheel destroyed. 08689_ Com. Wheel destroyed. 08690_ T-07 Excavator is excavating. Map ----- +----------------------------------------------------+ | | | | | | | | | | | | | | | | | | | | | | | | | ?????????????????????????????????????????????????? | | ?????????????????????????????????????????????????? | | ?????????????????????????????????????????????????? | | ?????????????????????????????????????????????????? | | ?????????????????????????????????????????????????? | | ?????????????????????????????????????????????????? | | ???????????????????????????????????????###???????? | | ??????????????????????????????????????## ##??????? | | ??????????????????????????????????????# ##?????? | | ???????????????????????####???????????# ##????? | | ???????????????????????# ###??????????# #????? | | ???????????????????????# t #?????????## #????? | | ???????????????????????## ##???????### #????? | | ????????????????????????#@ ########## #????? | | ????????????????????????# b ! ##????? | | ????????????????????????# % #?????? | | ????????????????????????############ ##?????? | | ???????????????????????????????????# ###??????? | | ???????????????????????????????????# ##????????? | | ???????????????????????????????????# ##?????????? | | ???????????????????????????????????# #??????????? | | ???????????????????????????????????# #######????? | | ???????????????????????????????????# #????? | | ????????????????????????????########|%##### #????? | | ????????????????????? ##??# #????? | | ????????????????????????????# ###### #### #????? | | ?????????????????????????????????##*! ] ####?? | | ????????????????????????????????## ]%![!! ##? | | ????????????????????????????????# ]/!%[ #? | | ????????????????????????????????# =*!| #? | | ????????????????????????????????## [/#### ## | | ?????????????????????????????????## ##??## # | | ??????????????????????????????????# ##???## # | | ?????????????????????????????????## #????## # | | ???????????????????????????####### %* #????## # | | ??????????????????????????## * #???## # | | ??????????????????????????# ##???# ## | | ??????????????????????????# ##????# #? | +----------------------------------------------------+ Best States ------------- Heat Dissipation 50 Energy Generation 14 Energy Capacity 280 Matter Stores 300 Matter Capacity 300 Sight Range 16 Terrain Scan Density 10 Armor Coverage 225 Evasion (%) 55 Recoil Reduction 3 Item Schematics ----------------- None Robot Schematics ------------------ None Fabricated ------------ Nothing Repaired ---------- Grenade Launcher | 68% | -10/Materials Beamcaster | 51% | -9/Materials Beamcaster | 7% | -9/Materials Studied --------- Beam Rifle | -9/Materials | Hacked Alien Tech Used ----------------- None Achievements -------------- None Challenges ------------ None Game ------ Seed MolecularStorageHoverbase Manual? 0 Play Time 00:52:36 Cumulative 412.2 hours Start 2025.11.21 @ 19:08:26 End 2025.11.21 @ 20:07:29 Sessions 1 Manual Loads 0 Difficulty Rogue Special Mode None Game No. 268 Rogue 268 Adventurer 0 Explorer 0 Win Type - Total 6 Types 4/0/1/0/0/0/0/1/0/0 Lore% 82 Gallery% 80 Achievement% 53 Wizard Run 0 Options --------- Layout 1 ASCII 0 Keyboard 0 Movement Numpad Keybinds 0 Fullscreen 1 Font 24/Smallcaps Map View 50x40 Zoom Use 0% Tactical HUD 1 Map Filters NONE Filters NONE Steam 1 RUN: 8c006ff7-9177-41c1-8ce4-094f9578334b